[Event "41st BAN National Women Chess-ch 2022"]
[Site "Dhaka"]
[Date "2022.11.27"]
[Round "10.5"]
[White "Talukder, Umme Taslima Protiva"]
[Black "Noshin, Anjum"]
[Result "0-1"]
[ECO "D27"]
[WhiteElo "1780"]
[BlackElo "1907"]
[Annotator "TA"]
[PlyCount "134"]
[EventDate "2022.11.17"]
[EventCountry "BAN"]
[SourceTitle "playchess.com"]
[Source "ChessBase"]
[SourceQuality "1"]
[TimeControl "40/5400+30:1800+30"]

{[%evp 25,133,12,24,14,21,-9,-4,-16,-16,-7,0,-4,0,0,0,0,0,0,2,-12,-12,-22,-3,-38,-30,-31,-34,-34,-34,-36,-36,-42,-1,-38,-1,-1,0,0,0,-15,-6,-169,-8,-15,-31,-36,-37,-46,0,0,0,-62,0,-69,-77,-737,-555,-791,-281,-778,-718,-2020,-1753,-1421,-1506,-12823,-12823,-12832,-12832,-12833,-12832,-12831,-12831,-12834,-12834,-12843,-12843,-12843,-12843,-12844,-12844,-12845,-12845,-12847,-12847,-12850,-27999,-27997,-27997,-27999,-27998,-27999,-27998,-27999,-27999,-27999,-27999,-27996,-27996,-27997,-27996,-27997,-27996,-27997,-27997,-27998,-27998,-27999,-27999,-29999]} 1. d4 {[%emt 0:00:42]} d5 {[%emt 0:00:08]} 2. c4 {[%emt 0:00:09]} dxc4 {[%emt 0:00:06]} 3. e3 {[%emt 0:00:21]} Nf6 {[%emt 0:00:15]} 4. Bxc4 {[%emt 0:00:07]} e6 {[%emt 0:00:06]} 5. Nf3 {[%emt 0:00:16]} c5 {[%emt 0:00:29]} 6. O-O {[%emt 0:00:52]} a6 {[%emt 0:00:05]} 7. dxc5 {[%emt 0:00:49]} Qxd1 {[%emt 0:00:37]} 8. Rxd1 {[%emt 0:00:02]} Bxc5 {[%emt 0:00:11]} 9. a3 {[%emt 0:03:12]} b5 {[%emt 0:01:08]} 10. Be2 {[%emt 0:00:46]} Bb7 {[%emt 0:04:21]} 11. b4 {[%emt 0:00:55]} Be7 {[%emt 0:04:52]} 12. Bb2 {[%emt 0:00:39]} Nbd7 {[%emt 0:00:52]} 13. Nbd2 {[%emt 0:00:32]} O-O {[%emt 0:04:58]} 14. Rac1 {[%emt 0:01:35] D27: Queen's Gambit Accepted: Classical main line: 7 e4!? and 7 a4.} Rfc8 {[%emt 0:00:19] Against Rc7} 15. Rxc8+ {[%emt 0:04:41]} Rxc8 {[%emt 0:00:16]} 16. Rc1 {[%emt 0:00:02] The position is equal.} Rxc1+ {[%emt 0:01:32]} 17. Bxc1 {[%emt 0:00:29] [#]} Ne4 $146 {[%emt 0:06:03]} ({Predecessor:} 17... Nd5) 18. Bb2 {[%emt 0:02:19]} Bf6 {[%emt 0:02:43]} 19. Bxf6 {[%emt 0:02:18]} Ndxf6 {[%emt 0:00:59]} 20. Bd3 {[%emt 0:06:13]} Kf8 {[%emt 0:00:13]} 21. Bxe4 {[%emt 0:03:23]} Bxe4 {[%emt 0:02:20]} 22. Nxe4 {[%emt 0:00:04]} Nxe4 $11 {[%emt 0:00:05][%mdl 4096] Endgame KN-KN} 23. Nd4 {[%emt 0:00:40]} Nd2 {[%emt 0:01:26]} 24. Nc2 {[%emt 0:01:13]} f5 {[%emt 0:04:49]} 25. f3 {[%emt 0:04:44]} Ke7 {[%emt 0:00:24]} 26. Kf2 {[%emt 0:00:46]} Kd6 {[%emt 0:00:06]} 27. Ke2 {[%emt 0:00:59]} Nc4 {[%emt 0:00:08]} 28. Kd3 {[%emt 0:02:32]} g5 {[%emt 0:00:19]} 29. h3 {[%emt 0:08:04]} h5 {[%emt 0:01:46]} 30. Kc3 {[%emt 0:08:26]} Nb6 {[%emt 0:10:36]} 31. Kd3 {[%emt 0:05:02]} Kd5 {[%emt 0:00:20]} 32. g3 {[%emt 0:04:41]} Nc4 {[%emt 0:03:29]} 33. Kc3 $2 {[%emt 0:08:54]} (33. Nd4 $1 $11) 33... g4 $2 {[%emt 0:05:36]} ({Black should play} 33... e5 $19 {And now ...e4 would win.} 34. Kd3 e4+ 35. fxe4+ fxe4+ 36. Ke2 Nd6) 34. fxg4 {[%emt 0:03:32]} fxg4 {[%emt 0:00:15]} 35. hxg4 {[%emt 0:00:23]} hxg4 {[%emt 0:00:05] ...Ke4 is the strong threat.} 36. Kd3 {[%emt 0:02:04]} Ne5+ {[%emt 0:02:01]} (36... Nb2+ $1 $15 37. Ke2 e5 38. e4+ Kxe4) 37. Ke2 $1 {[%emt 0:02:27]} Nc4 {[%emt 0:06:56]} (37... Nf3 $11 38. Kd3 Ne5+ 39. Ke2 Nc4) 38. Kd3 $15 {[%emt 0:00:29]} Ke5 {[%emt 0:05:22] Black is more active.} (38... Nb2+ $1 $15 39. Kd2 e5) 39. e4 {[%emt 0:04:57]} (39. Nd4 $1 $11) 39... Nb2+ $1 {[%emt 0:00:16] Black converts the advantage convincingly.} 40. Ke3 $2 {[%emt 0:11:54][%mdl 8192] [#]} (40. Ke2 $17) 40... Nd1+ $1 $19 {[%emt 0:00:16]} 41. Kd2 {[%emt 0:31:07]} Nf2 {[%emt 0:30:05]} 42. Ne3 $2 {[%emt 0:02:00]} (42. Ke1 Nxe4 43. Ne3) 42... Nxe4+ {[%emt 0:00:10]} (42... Kxe4 $2 43. Ke2 Nh1 44. Nxg4 Nxg3+ 45. Ke1 $19) 43. Kd3 {[%emt 0:00:29]} Nxg3 {[%emt 0:00:06]} 44. Nxg4+ {[%emt 0:00:11]} Kf4 {[%emt 0:35:21]} 45. Nf6 {[%emt 0:02:49] [#]} e5 $1 {[%emt 0:00:00]} 46. Nd5+ {[%emt 0:00:46]} Kf3 {[%emt 0:00:00]} 47. Ne3 {[%emt 0:00:00]} e4+ {[%emt 0:00:00]} 48. Kd2 {[%emt 0:00:00]} Nh5 {[%emt 0:00:00]} 49. Nc2 {[%emt 0:00:00]} Nf4 {[%emt 0:00:00]} 50. Kc3 {[%emt 0:00:00]} e3 {[%emt 0:00:00]} 51. Kd4 {[%emt 0:00:00]} e2 {[%emt 0:00:00]} 52. Kc5 {[%emt 0:00:00]} Kf2 {[%emt 0:00:00]} 53. Kb6 {[%emt 0:00:00]} Nd5+ {[%emt 0:00:00]} ({Worse is} 53... e1=B 54. Nxe1 Kxe1 55. Kxa6 $11) 54. Kxa6 {[%emt 0:00:00]} Ne3 {[%emt 0:00:00]} (54... e1=R $2 55. Nxe1 Nc3 56. Nc2 $16) 55. Nxe3 {[%emt 0:00:00]} Kxe3 {[%emt 0:00:00]} (55... e1=B 56. Nc2 Bc3 57. Kxb5 $18) ({Not} 55... e1=R 56. Nd5 $11) 56. Kxb5 {[%emt 0:00:00] Black mates.} e1=Q {[%emt 0:00:00]} ({Stronger than} 56... e1=B 57. Kc6 $11) 57. a4 {[%emt 0:00:00]} Kd4 {[%emt 0:00:00]} 58. a5 {[%emt 0:00:00]} Qe8+ {[%emt 0:00:00]} 59. Kb6 {[%emt 0:00:00]} Qb8+ {[%emt 0:00:00]} 60. Ka6 {[%emt 0:00:00]} Qxb4 {[%emt 0:00:00]} 61. Ka7 {[%emt 0:00:00]} Qxa5+ {[%emt 0:00:00]} 62. Kb8 {[%emt 0:00:00]} Qc5 {[%emt 0:00:00]} 63. Kb7 {[%emt 0:00:00]} Qd6 {[%emt 0:00:00]} 64. Ka7 {[%emt 0:00:00]} Kc5 {[%emt 0:00:00]} 65. Kb7 {[%emt 0:00:00]} Qe7+ {[%emt 0:00:00]} 66. Kb8 {[%emt 0:00:00]} Kb6 {[%emt 0:00:00]} 67. Ka8 {[%emt 0:00:00]} Qe8# {[%emt 0:00:00] Weighted Error Value: White=0.58/Black=0.10 (very precise)} 0-1

[Event "41st BAN National Women Chess-ch 2022"]
[Site "Dhaka"]
[Date "2022.11.27"]
[Round "10.6"]
[White "Nusrat Jahan, Alo"]
[Black "Tasnia Tarannum, Orpa"]
[Result "1-0"]
[ECO "B16"]
[WhiteElo "1710"]
[BlackElo "1662"]
[Annotator "NA RC COMBH"]
[PlyCount "123"]
[EventDate "2022.11.17"]
[EventCountry "BAN"]
[SourceTitle "playchess.com"]
[Source "ChessBase"]
[SourceQuality "1"]
[TimeControl "40/5400+30:1800+30"]

1. e4 {[%emt 0:00:05]} c6 {[%emt 0:00:06]} 2. d4 {[%emt 0:01:23]} d5 {[%emt 0:00:06]} 3. Nd2 {[%emt 0:00:23]} dxe4 {[%emt 0:00:07]} 4. Nxe4 {[%emt 0:00:23]} Nf6 {[%emt 0:00:08]} 5. Nxf6+ {[%emt 0:00:11]} gxf6 {[%emt 0:00:10]} 6. Be3 {[%emt 0:02:42]} Qb6 {[%emt 0:07:06]} 7. Qc1 {[%emt 0:03:11]} h5 {[%emt 0:01:40]} 8. Bd3 {[%emt 0:04:43]} Qb4+ {[%emt 0:05:19]} 9. c3 {[%emt 0:01:53]} Qd6 {[%emt 0:00:04]} 10. Qd2 {[%emt 0:10:14]} Qd5 {[%emt 0:01:54]} 11. f3 {[%emt 0:06:43]} Bf5 {[%emt 0:00:39]} 12. Ne2 {[%emt 0:01:51]} Bxd3 {[%emt 0:03:33]} 13. Nf4 {[%emt 0:01:04]} Qf5 {[%emt 0:01:40]} 14. Nxd3 {[%emt 0:00:38]} Nd7 {[%emt 0:00:16]} 15. O-O-O {[%emt 0:05:38]} e6 {[%emt 0:01:20]} 16. Kb1 {[%emt 0:11:35]} Nb6 {[%emt 0:00:09]} 17. Ka1 {[%emt 0:00:21]} Nc4 {[%emt 0:00:23]} 18. Qe2 {[%emt 0:00:11]} Nxe3 {[%emt 0:00:42]} 19. Qxe3 {[%emt 0:00:05]} Bh6 {[%emt 0:02:02]} 20. Qe2 {[%emt 0:00:46]} Rg8 {[%emt 0:02:20]} 21. Nc5 {[%emt 0:02:25]} O-O-O {[%emt 0:01:32]} 22. Ne4 {[%emt 0:01:15]} Qg6 {[%emt 0:01:23]} 23. g3 {[%emt 0:03:47]} f5 {[%emt 0:05:05]} 24. Nc5 {[%emt 0:05:33]} Qf6 {[%emt 0:04:39]} 25. Nd3 {[%emt 0:10:12]} Rd5 {[%emt 0:08:09]} 26. Ne5 {[%emt 0:03:47]} Rgd8 {[%emt 0:02:58]} 27. f4 {[%emt 0:08:37]} h4 {[%emt 0:04:31]} 28. Qh5 {[%emt 0:02:32]} Rf8 {[%emt 0:00:26]} 29. Rdf1 {[%emt 0:02:55]} Bg7 {[%emt 0:02:52]} 30. gxh4 {[%emt 0:03:33]} Qe7 {[%emt 0:01:15]} 31. Rhg1 {[%emt 0:02:23]} Bf6 {[%emt 0:00:45]} 32. Qh7 {[%emt 0:01:52]} c5 {[%emt 0:01:21]} 33. Rg8 {[%emt 0:01:53]} Rxg8 {[%emt 0:03:35]} 34. Qxg8+ {[%emt 0:00:04]} Rd8 {[%emt 0:01:05]} 35. Qxf7 {[%emt 0:00:13]} cxd4 {[%emt 0:00:15]} 36. Qxe7 {[%emt 0:00:51]} Bxe7 {[%emt 0:00:19]} 37. cxd4 {[%emt 0:00:16]} Bxh4 {[%emt 0:00:43]} 38. Nf3 {[%emt 0:00:59]} Bf6 {[%emt 0:00:35]} 39. Rd1 {[%emt 0:01:14]} Rd5 {[%emt 0:06:44]} 40. Kb1 {[%emt 0:01:14]} Kd8 {[%emt 0:00:14]} 41. Kc2 {[%emt 0:30:21]} Ke7 {[%emt 0:30:21]} 42. Kd3 {[%emt 0:00:00]} Rd8 {[%emt 0:00:00]} 43. Rc1 {[%emt 0:00:00]} Kd6 {[%emt 0:00:00]} 44. Ke3 {[%emt 0:00:00]} Rg8 {[%emt 0:00:00]} 45. Rc2 {[%emt 0:00:00]} Rg7 {[%emt 0:00:00]} 46. b3 {[%emt 0:00:00]} Rh7 {[%emt 0:00:00]} 47. h4 {[%emt 0:00:00]} b6 {[%emt 0:00:00]} 48. Rh2 {[%emt 0:00:00]} Rh5 {[%emt 0:00:00]} 49. Kf2 {[%emt 0:00:00]} Kd5 {[%emt 0:00:00]} 50. Kg3 {[%emt 0:00:00]} Rh8 {[%emt 0:00:00]} 51. Re2 {[%emt 0:00:00]} Rc8 {[%emt 0:00:00]} 52. Ng5 {[%emt 0:00:00]} Rc6 {[%emt 0:00:00]} 53. h5 {[%emt 0:00:00]} Rc3+ {[%emt 0:02:16]} 54. Kh4 {[%emt 0:00:00]} Rf3 {[%emt 0:00:19]} 55. h6 {[%emt 0:00:00]} Rxf4+ {[%emt 0:06:55]} 56. Kh5 {[%emt 0:00:00]} Rg4 {[%emt 0:03:54]} 57. Nxe6 {[%emt 0:00:00]} Rg8 {[%emt 0:01:25]} 58. h7 {[%emt 0:00:33]} Rg1 {[%emt 0:00:43]} 59. Nf4+ {[%emt 0:03:38]} Kxd4 {[%emt 0:00:33]} 60. Re6 {[%emt 0:01:27]} Bh8 {[%emt 0:04:02]} 61. Re7 {[%emt 0:01:47]} a5 {[%emt 0:04:40]} 62. Ne2+ {[%emt 0:00:14]} 1-0

[Event "41st BAN National Women Chess-ch 2022"]
[Site "Dhaka"]
[Date "2022.11.28"]
[Round "11.1"]
[White "Tasnia Tarannum, Orpa"]
[Black "Khan, Nazrana"]
[Result "1/2-1/2"]
[ECO "E05"]
[WhiteElo "1662"]
[BlackElo "1908"]
[Annotator "TA"]
[PlyCount "114"]
[EventDate "2022.11.17"]
[EventCountry "BAN"]
[SourceTitle "playchess.com"]
[Source "ChessBase"]
[SourceQuality "1"]
[TimeControl "40/5400+30:1800+30"]

{[%evp 10,114,3,12,44,0,0,-14,-2,-20,-13,-27,0,0,0,-20,0,-70,-77,-60,-50,-68,-53,-61,-27,-89,-53,-81,-63,-48,-14,-15,-15,-33,-36,-37,-17,-29,-30,-125,-40,-17,0,0,0,0,0,-2,0,0,0,0,0,0,0,0,1,-70,-70,-70,-70,-70,-70,-70,-70,-159,-70,-70,-70,-70,-70,-70,0,-70,-70,-70,-70,-70,-70,-63,0,-63,-33,-33,-33,-33,-33,-33,-33,-33,-8,-8,-8,-41,-8,-8,-8,0,0,-8,-8,-21,-22,-23,0,0,0]} 1. d4 {[%emt 0:00:03]} d5 {[%emt 0:00:12]} 2. c4 {[%emt 0:00:05]} e6 {[%emt 0:00:05]} 3. g3 {[%emt 0:00:11]} Nf6 {[%emt 0:00:13]} 4. Bg2 {[%emt 0:00:05]} Be7 {[%emt 0:00:51]} 5. Nf3 {[%emt 0:00:07]} dxc4 {[%emt 0:00:22]} 6. O-O {[%emt 0:01:20]} a6 {[%emt 0:00:33] E05: Open Catalan: 5 Nf3 Be7.} 7. a4 {[%emt 0:01:57]} Nc6 {[%emt 0:03:29] [#]} 8. Nbd2 $146 {[%emt 0:03:18]} ({Predecessor:} 8. Na3 Na5 9. Qc2 Nb3 10. Rb1 Bxa3 11. bxa3 b5 12. Ne5 Nd5 13. Nc6 Qd7 14. e4 Nf6 {0-1 (36) Matlakov,M (2671)-Yoo,C (2567) Chess.com INT 2022}) 8... Nxd4 {[%emt 0:01:25]} 9. Nxc4 {[%emt 0:00:10]} Nxf3+ {[%emt 0:01:35]} 10. Bxf3 {[%emt 0:00:09]} Qxd1 {[%emt 0:03:06]} 11. Rxd1 {[%emt 0:00:05]} O-O {[%emt 0:01:36]} 12. Bf4 {[%emt 0:01:50]} Nd5 {[%emt 0:05:22]} 13. Bxd5 {[%emt 0:04:20]} ({Better is} 13. Be5 $11) 13... exd5 $15 {[%emt 0:00:11]} 14. Rxd5 {[%emt 0:02:42][%cal Oa1c1]} Be6 {[%emt 0:01:03]} 15. Re5 {[%emt 0:00:57]} Rfe8 {[%emt 0:07:33]} 16. Rc1 {[%emt 0:03:19]} Rad8 {[%emt 0:10:00]} 17. Be3 {[%emt 0:14:11]} (17. Na5 $11 {keeps the balance.}) 17... b6 {[%emt 0:04:37]} 18. Re4 {[%emt 0:15:54]} h6 {[%emt 0:06:05]} 19. Rd4 {[%emt 0:05:08]} Bg5 {[%emt 0:09:34] This pair of bishops is nice.} (19... Rxd4 {simplifies} 20. Bxd4 f6 21. f3 Kf7) 20. Rxd8 {[%emt 0:02:22]} Rxd8 {[%emt 0:00:44]} 21. Bxg5 {[%emt 0:02:52]} hxg5 $11 {[%emt 0:00:08][%mdl 4096] Endgame KRB-KRN} 22. a5 {[%emt 0:03:59]} bxa5 {[%emt 0:03:48]} 23. Nxa5 {[%emt 0:00:42]} Rd2 {[%emt 0:00:44][%csl LRb2,LRe2]} 24. Rxc7 {[%emt 0:02:05]} (24. Kf1 $11 {remains equal.}) 24... Rxb2 {[%emt 0:02:01]} (24... Rxe2 $17 25. b3 Ra2) 25. Kf1 $15 {[%emt 0:06:17]} Rb5 {[%emt 0:01:35]} 26. Nc6 {[%emt 0:01:02]} Rb1+ {[%emt 0:06:38]} 27. Kg2 {[%emt 0:00:12]} g4 {[%emt 0:01:05]} 28. f3 {[%emt 0:14:54]} Rb2 {[%emt 0:01:21]} 29. Nd4 {[%emt 0:00:50]} gxf3+ {[%emt 0:08:33]} 30. Kxf3 {[%emt 0:00:20]} Bd5+ {[%emt 0:02:35]} 31. e4 {[%emt 0:02:53]} Ba2 {[%emt 0:01:45]} 32. Rc8+ {[%emt 0:00:30]} Kh7 {[%emt 0:00:54]} 33. Rc2 {[%emt 0:00:52]} (33. h4 $11) 33... Rxc2 {[%emt 0:01:32]} 34. Nxc2 {[%emt 0:00:07] KB-KN} a5 {[%emt 0:01:05][%cal Ba6a5,Ba5a4][%mdl 32] Inhibits Nb4.} 35. Kf4 {[%emt 0:00:59]} Kh6 {[%emt 0:01:31]} 36. Nd4 {[%emt 0:04:35]} a4 {[%emt 0:00:51]} 37. Nb5 {[%emt 0:02:58] [#]} ({White has to play} 37. h4 $1 $15) 37... Be6 {[%emt 0:00:57]} (37... f6 $1 $17 {And now ...Be6 would win.} 38. Kf5 Bf7) 38. h4 $1 {[%emt 0:01:53]} Kh5 {[%emt 0:02:11]} 39. e5 {[%emt 0:00:45]} Bb3 {[%emt 0:12:10]} 40. Nd4 {[%emt 0:00:45]} Be6 {[%emt 0:00:00] Strongly threatening ...a3.} 41. Nb5 {[%emt 0:30:11]} Bh3 {[%emt 0:23:55]} 42. Na3 $1 {[%emt 0:00:33]} Bf1 {[%emt 0:01:33]} 43. Nc2 {[%emt 0:00:00]} Bc4 {[%emt 0:00:00]} 44. Na3 $1 {[%emt 0:00:00]} Be6 {[%emt 0:00:00]} 45. Nb5 $1 {[%emt 0:00:00]} g6 {[%emt 0:00:00]} 46. Na3 $1 {[%emt 0:00:00]} Bb3 {[%emt 0:00:00]} 47. Nb5 {[%emt 0:00:00]} Bc4 {[%emt 0:00:00]} 48. Na3 {[%emt 0:00:00]} Bd3 {[%emt 0:00:00]} 49. Kf3 {[%emt 0:00:00]} g5 {[%emt 0:00:00]} 50. hxg5 {[%emt 0:00:00]} ({Of course not} 50. Ke3 gxh4 51. gxh4 Ba6 $17) 50... Kxg5 {[%emt 0:00:00] ...Bf5 is the strong threat.} 51. Ke3 {[%emt 0:00:00]} Bf1 {[%emt 0:00:00]} 52. Kd4 {[%emt 0:00:00]} Bh3 {[%emt 0:00:00]} 53. Nc4 {[%emt 0:00:00]} Be6 {[%emt 0:00:00] [#] ( -> ...Bxc4)} 54. Ne3 {[%emt 0:00:00]} Kg6 {[%emt 0:00:00]} 55. Nc2 {[%emt 0:00:00]} Bb3 {[%emt 0:00:00]} 56. Ne3 {[%emt 0:00:00]} Kg5 {[%emt 0:00:00]} (56... a3 $5 57. Kc3 $8 Ba4 $11) 57. Kc3 {[%emt 0:00:00]} Kh5 {[%emt 0:00:37] Weighted Error Value: White=0.14 (very precise) /Black=0.14 (very precise)} 1/2-1/2

[Event "41st BAN National Women Chess-ch 2022"]
[Site "Dhaka"]
[Date "2022.11.28"]
[Round "11.2"]
[White "Noshin, Anjum"]
[Black "Nusrat Jahan, Alo"]
[Result "1/2-1/2"]
[WhiteElo "1907"]
[BlackElo "1710"]
[Annotator "TA"]
[PlyCount "37"]
[EventDate "2022.11.17"]
[EventCountry "BAN"]
[SourceTitle "playchess.com"]
[Source "ChessBase"]
[SourceQuality "1"]
[TimeControl "40/5400+30:1800+30"]

{[%evp 13,14,26,22]} 1. e4 {[%emt 0:00:03]} c5 {[%emt 0:00:11]} 2. Nf3 {[%emt 0:00:10]} e6 {[%emt 0:00:06]} 3. d4 {[%emt 0:00:11]} cxd4 {[%emt 0:00:07]} 4. Nxd4 {[%emt 0:00:05]} a6 {[%emt 0:00:08]} 5. Nc3 {[%emt 0:00:07]} Qc7 {[%emt 0:00:08]} 6. Bd3 {[%emt 0:00:05]} Nf6 {[%emt 0:00:13]} 7. O-O {[%emt 0:00:08]} Be7 {[%emt 1:33:07] [#]} {Predecessor:} 8. Kh1 $146 {B82: Sicilian Scheveningen: 6 f4.} d6 9. f4 b5 10. e5 dxe5 11. fxe5 Qxe5 12. Bf4 Qc5 13. Qf3 Qa7 14. Ndxb5 axb5 15. Nxb5 Bb7 16. Qg3 Nh5 17. Qg4 Bxg2+ 18. Qxg2 Nxf4 19. Rxf4 {1-0 (25) Guseinov,G (2666)-Geller,J (2521) Moscow 2019} 1/2-1/2

[Event "41st BAN National Women Chess-ch 2022"]
[Site "Dhaka"]
[Date "2022.11.28"]
[Round "11.3"]
[White "Jannatul, Ferdous"]
[Black "Talukder, Umme Taslima Protiva"]
[Result "1/2-1/2"]
[WhiteElo "1861"]
[BlackElo "1780"]
[Annotator "NA RC"]
[PlyCount "18"]
[EventDate "2022.11.17"]
[EventCountry "BAN"]
[SourceTitle "playchess.com"]
[Source "ChessBase"]
[SourceQuality "1"]
[TimeControl "40/5400+30:1800+30"]

{[%evp 8,18,0,0,10,0,16,9,29,36,39,34,67]} 1. d4 {[%emt 0:00:32]} Nf6 {[%emt 0:00:40]} 2. Nf3 {[%emt 0:00:36]} g6 {[%emt 0:00:28]} 3. Bf4 {[%emt 0:00:08]} Bg7 {[%emt 0:00:27]} 4. e3 {[%emt 0:00:02]} d6 {[%emt 0:00:32]} 5. h3 {[%emt 0:01:03]} Nbd7 {[%emt 0:00:32]} 6. c4 {[%emt 0:00:59]} O-O $11 {[%emt 0:00:59]} 7. Nc3 {[%emt 0:00:16]} c5 {[%emt 0:00:51]} 8. Be2 {[%emt 0:00:56]} b6 {[%emt 0:00:36]} 9. O-O {[%emt 0:00:41]} Bb7 {[%emt 0:06:48]} (9... cxd4 $1 $11 10. exd4 (10. Nxd4 Bb7 $11) (10. Qxd4 $2 {too greedy.} e5 $19) 10... Bb7) 1/2-1/2

[Event "41st BAN National Women Chess-ch 2022"]
[Site "Dhaka"]
[Date "2022.11.28"]
[Round "11.5"]
[White "Ahmed, Walijah"]
[Black "Sabiha, Marjana"]
[Result "1-0"]
[ECO "B07"]
[WhiteElo "1977"]
[BlackElo "1267"]
[Annotator "TA"]
[PlyCount "45"]
[EventDate "2022.11.17"]
[EventCountry "BAN"]
[SourceTitle "playchess.com"]
[Source "ChessBase"]
[SourceQuality "1"]
[TimeControl "40/5400+30:1800+30"]

{[%evp 12,44,83,65,116,62,365,368,476,497,523,518,563,547,1112,1102,1172,1159,1614,1612,1600,1597,1909,1870,29995,29996,29996,29997,29997,29995,29995,29994,29996,29997,29999]} 1. e4 {[%emt 0:00:03]} d6 {[%emt 0:00:15]} 2. d4 {[%emt 0:00:06]} Nf6 {[%emt 0:00:21]} 3. Nc3 {[%emt 0:00:08]} c6 {[%emt 0:00:12]} 4. f4 {[%emt 0:01:03]} Qa5 {[%emt 0:01:02]} 5. Bd3 {[%emt 0:00:33][%cal Bf1d3,Bd3e4,Be4f3][%mdl 32]} e5 {[%emt 0:02:41]} 6. Nf3 {[%emt 0:01:52]} Bg4 {[%emt 0:00:47]} 7. Be3 {[%emt 0:00:39]} Qb6 {[%emt 0:02:47] B07: Pirc Defence: Miscellaneous Systems.} (7... exf4 $14 8. Bxf4 Qb6) 8. Qd2 {[%emt 0:16:30]} (8. dxe5 $2 Qxe3+ 9. Qe2 Qxe2+ 10. Bxe2 Bxf3 11. exf6 Bxe2 12. fxg7 Bxg7 13. Nxe2 Na6 $19) ({White should play} 8. fxe5 $16 dxe5 9. Qd2) 8... Bxf3 $4 {[%emt 0:02:16][%mdl 8192]} (8... Qxb2 $2 9. Rb1 Qa3 10. fxe5 $18 (10. dxe5 dxe5 11. Nxe5 Be6 $16)) ({Better is} 8... exf4 $1 $14 9. Bxf4 Bxf3 10. gxf3 Qxd4) 9. dxe5 $18 {[%emt 0:00:23][%mdl 64] [#] Discovered Attack} (9. gxf3 $2 {perishes.} exd4 10. Bxd4 Qxd4 $19) (9. Na4 Qd8 10. gxf3 exf4 11. Bxf4 Nh5 $16) 9... Nxe4 $146 {[%emt 0:07:34] White is winning.} ({Predecessor:} 9... Qd8 10. exf6 Bg4 11. f5 d5 12. exd5 cxd5 13. O-O gxf6 14. Rae1 Be7 15. Bc5 Nc6 16. Bxe7 Nxe7 17. Bb5+ Kf8 18. Qh6+ Kg8 19. Qxf6 Nc6 20. Qh6 f6 21. Rf4 Bxf5 22. Rxf5 {1-0 (22) Sameeh,H (2292)-Elgendy,A (2174) Cairo 2007}) 10. Bxe4 {[%emt 0:00:45]} ({Not} 10. Nxe4 Qxb2 11. O-O Bxe4 $18) 10... Qc7 {[%emt 0:00:33]} 11. Bxf3 {[%emt 0:03:16]} dxe5 {[%emt 0:00:26]} 12. fxe5 {[%emt 0:00:04]} Qxe5 {[%emt 0:00:38]} 13. O-O-O {[%emt 0:00:10][%csl Gd1][%cal Rd2d8]} Be7 {[%emt 0:00:38] Inhibits Qd8+.} 14. Bf4 {[%emt 0:02:25]} Qa5 {[%emt 0:07:04]} 15. Rhe1 {[%emt 0:01:18][%cal Oe1e7] Threatening mate with Rxe7+!} O-O {[%emt 0:06:27]} 16. Rxe7 {[%emt 0:00:20]} Na6 {[%emt 0:04:49]} 17. Be5 {[%emt 0:02:12]} f6 {[%emt 0:08:06] [#]} 18. Rxg7+ $3 {[%emt 0:00:15] White mates.} Kxg7 {[%emt 0:00:33]} 19. Qg5+ {[%emt 0:00:03]} Kh8 {[%emt 0:04:31]} 20. Bxf6+ {[%emt 0:00:05]} Rxf6 {[%emt 0:00:23]} 21. Qxf6+ {[%emt 0:02:19]} Kg8 {[%emt 0:48:57]} 22. Rd7 {[%emt 0:00:03][%csl Gd7][%cal Rf6g7]} Qc5 {[%emt 0:00:00]} 23. Qg7# {[%emt 0:00:06] White took control after the opening.   Weighted Error Value: White=0.07 (flawless) /Black=1.34} 1-0